Cogmind - Beta 13 @@@ ROGUE MODE // 2024.04.08 @ 13:03:19 Player: Devilhunter10 Result: Destroyed by G-47 Trooper with Particle Gun Performance ------------- Evolutions (0) 0 Regions Visited (2) 400 Robots Destroyed (4) 20 Value Destroyed (150) 150 Prototype IDs (0) 0 Alien Tech Used (0) 0 Bonus (0) 0 TOTAL SCORE: 570 Bonus ------- None Cogmind --------- Core Integrity 0/250 Matter 203/300 Energy 123/125 System Corruption 0% Temperature Warning (364) Movement Core (200) Ox3 Location -10/Mines Parts ------- > --- POWER (1) -------- Light Ion Engine > --- PROPULSION (2) --- (None) > --- UTILITY (2) ------ Small Storage Unit Signal Interpreter > --- WEAPON (2) ------- Improved Light Cannon > --- INVENTORY (8) ---- Light Ion Engine Improved Aluminum Leg Improved Aluminum Leg Heat Sink High-capacity Matter Pod (200) Assault Rifle Improved Light Cannon Improved Light Cannon Peak State ------------ > --- POWER ------------ Light Ion Engine > --- PROPULSION ------- Improved Aluminum Leg Improved Aluminum Leg > --- UTILITY ---------- Small Storage Unit Signal Interpreter > --- WEAPON ----------- Improved Light Cannon Improved Light Cannon > --- INVENTORY -------- Light Ion Engine Improved Aluminum Leg Improved Aluminum Leg Heat Sink Assault Rifle Improved Light Cannon Improved Light Cannon [Rating: 12] Favorites ----------- Power Light Ion Engine Engine Light Ion Engine Propulsion Improved Aluminum Leg Leg Improved Aluminum Leg Utility Small Storage Unit Storage Small Storage Unit Processor Signal Interpreter Weapon Improved Light Cannon Energy Gun Medium Laser Ballistic Gun Assault Rifle Ballistic Cannon Improved Light Cannon Build | -11 -10 -10 ------- Run | Yrd Mat Min Slots Evolved . | . . . Power . | . . . Propulsion . | . . . Utility . | . . . Weapon . | . . . Parts Attached 12 | 7 3 2 Power 1 | 1 . . Engine 1 | 1 . . Core . | . . . Reactor . | . . . Propulsion 4 | 2 2 . Treads . | . . . Leg 4 | 2 2 . Wheel . | . . . Hover . | . . . Flight . | . . . Utility 2 | 1 1 . Device . | . . . Storage 1 | 1 . . Processor 1 | . 1 . Hackware . | . . . Protection . | . . . Artifact . | . . . Weapon 5 | 3 . 2 Energy Gun 1 | 1 . . Energy Cannon . | . . . Ballistic Gun 2 | 2 . . Ballistic Cannon 2 | . . 2 Launcher . | . . . Special Weapon . | . . . Impact Weapon . | . . . Slashing Weapon . | . . . Piercing Weapon . | . . . Special Melee Weapon . | . . . Unidentified Prototypes . | . . . Parts Lost 4 | . . 4 Power . | . . . Propulsion 2 | . . 2 Utility . | . . . Weapon 2 | . . 2 Highest Loss Streak 3 | . . 3 To Critical Strikes . | . . . Average Slot Usage (%) 98 | . 98 98 Engine 14 | . 14 14 Leg 27 | . 28 27 Storage 14 | . 14 14 Processor 13 | . 12 14 Ballistic Gun 11 | . 28 4 Ballistic Cannon 15 | . . 22 Naked Turns . | . . . Heaviest Build 16 | 12 12 16 Greatest Support 26 | 20 26 26 Greatest Overweight (x) . | . . . Average Overweight (x) . | . . . Largest Inventory Capacity 8 | 8 8 8 Average Capacity 7 | 6 8 8 Most Carried 8 | 2 8 8 Average Carried 6 | 1 4 7 Final Capacity 8 | 8 8 8 Final Carried 8 | 2 8 8 Class Distribution -------------------- 100% | Mutant Dominant Class ---------------- Mutant | -10/Materials Mutant | -10/Mines Resources | -11 -10 -10 ----------- Run | Yrd Mat Min Matter Collected 415 | 116 15 284 Remotely . | . . . Salvage Created 107 | . 15 92 Parts . | . . . Haulers Intercepted . | . . . Recyclers Shooed . | . . . Parts Field Recycled . | . . . Retrieved Matter . | . . . Parts Self-Destructed . | . . . Prevented . | . . . Kills | -11 -10 -10 ------- Run | Yrd Mat Min Combat Hostiles Destroyed 7 | . . 7 Guns 4 | . . 4 Cannons 3 | . . 3 Classes Destroyed 4 | . 1 3 Operator 1 | . 1 . Grunt 2 | . . 2 Demolisher 1 | . . 1 Assembled 4 | . . 4 Best Kill Streak 4 | . 1 4 Combat Bots Only 4 | . . 4 Max Kills in Single Turn 1 | . 1 1 Gunslinging . | . . . Exploded . | . . . Melee . | . . . Uniques/NPCs Destroyed . | . . . Combat | -11 -10 -10 -------- Run | Yrd Mat Min Hostile Shots Fired 71 | . . 71 Missed 21 | . . 21 Damage Taken 909 | . . 909 Core 252 | . . 252 Absorbed by Shields . | . . . Core Remaining (%) 100 | 100 . . Volleys Fired 32 | 1 3 28 Largest 2 | 2 2 2 Hottest 78 | 40 40 78 Shots Fired 60 | 2 6 52 Gun 28 | 2 6 20 Cannon 32 | . . 32 Launcher . | . . . Special . | . . . Kinetic 60 | 2 6 52 Thermal . | . . . Explosive . | . . . Electromagnetic . | . . . Robot Hit Streak 5 | . 2 5 Robot Miss Streak 3 | . 1 3 Penetration Max . | . . . Secondary Targets 2 | . . 2 Max Gunslinging Chain 1 | . . 1 Shots Hit Robots 33 | . 3 30 Core Hits 15 | . 2 13 Critical Kills . | . . . Critical Parts Destroyed . | . . . Critical Strikes . | . . . Melee Attacks . | . . . Impact . | . . . Slashing . | . . . Piercing . | . . . Sneak Attacks . | . . . Combat Hostiles . | . . . Follow-up Attacks . | . . . Damage Inflicted 589 | . 40 549 Guns 212 | . 40 172 Cannons 377 | . . 377 Explosions . | . . . Melee . | . . . Ramming . | . . . Kinetic 589 | . 40 549 Thermal . | . . . Explosive . | . . . Electromagnetic . | . . . Impact . | . . . Slashing . | . . . Piercing . | . . . Highest Corruption . | . . . Average Corruption . | . . . Corruption Purged . | . . . Corruption Blocked . | . . . Overload Shots . | . . . Overflow Damage 8 | . . 8 Projectiles 8 | . . 8 Explosions . | . . . Melee . | . . . Knockbacks 6 | . . 6 Impact . | . . . Kinetic 6 | . . 6 Secondary . | . . . Self-Inflicted Damage . | . . . Shots . | . . . Rammed . | . . . Targets Rammed . | . . . Kicked . | . . . Crushed . | . . . Highest Temperature 355 | . . 355 Average Temperature 142 | . . 142 Received Heat Transfer 275 | . . 275 Siege Activations . | . . . Robots Corrupted . | . . . Combat Hostiles . | . . . Parts Fried . | . . . Impact Corruptions . | . . . Robots Melted . | . . . Combat Hostiles . | . . . Parts Melted . | . . . Heat Transferred . | . . . Parts Sabotaged . | . . . Parts Stolen . | . . . Parts Stripped . | . . . Power Chain Reactions . | . . . Alert | -11 -10 -10 ------- Run | Yrd Mat Min Peak Influence 57 | . 6 57 Initial 1 | . . 1 Average 15 | . 4 21 Maximum Alert Level . | . . . Low Security (%) 100 | 100 100 100 Level 1 . | . . . Level 2 . | . . . Level 3 . | . . . Level 4 . | . . . Level 5 . | . . . High Security . | . . . Max Security . | . . . Squads Dispatched 1 | . 1 . Investigation . | . . . Extermination . | . . . Reinforcement 1 | . 1 . Assault . | . . . Garrison . | . . . Intercept . | . . . Searches Triggered . | . . . Construction Impeded . | . . . Haulers Reinforced . | . . . Active Scanning Responses . | . . . Cargo Convoy Interrupts . | . . . Stealth | -11 -10 -10 --------- Run | Yrd Mat Min Distress Signals . | . . . Communications Jammed . | . . . Distress Signals . | . . . Times Spotted 27 | . 1 26 Peak Tracking Total 20 | . 1 20 Tactical Retreats 1 | . . 1 Traps | -11 -10 -10 ------- Run | Yrd Mat Min Traps Triggered . | . . . Indirectly . | . . . Trap Hack Attempts . | . . . Triggered . | . . . Disarmed . | . . . Reprogrammed . | . . . Reused . | . . . Traps Extracted . | . . . Installed . | . . . Triggered . | . . . Machines | -11 -10 -10 ---------- Run | Yrd Mat Min Machines Disabled . | . . . Max in Single Turn . | . . . Machines Repaired . | . . . Machines Dismantled . | . . . Machines Sabotaged . | . . . Overloaded Fab Kills . | . . . Hacking | -11 -10 -10 --------- Run | Yrd Mat Min Machines Accessed 2 | . 2 . Terminals 1 | . 1 . Fabricators . | . . . Repair Stations . | . . . Recycling Units 1 | . 1 . Scanalyzers . | . . . Garrison Access . | . . . Total Hacks 4 | . 4 . Successful 2 | . 2 . Failed 2 | . 2 . Catastrophic . | . . . Database Lockouts . | . . . Manual . | . . . Terminals 3 | . 3 . Fabricators . | . . . Repair Stations . | . . . Recycling Units 1 | . 1 . Scanalyzers . | . . . Garrison Access . | . . . Terminal Hacks 1 | . 1 . Hauler Manifests 1 | . 1 . Fabricator Hacks . | . . . Repair Station Hacks . | . . . Recycling Unit Hacks 1 | . 1 . Report Inventory 1 | . 1 . Scanalyzer . | . . . Garrison Access Hacks . | . . . Unauthorized Hacks . | . . . Terminals . | . . . Fabricators . | . . . Repair Stations . | . . . Recycling Units . | . . . Scanalyzers . | . . . Garrison Access . | . . . Data Cores Recovered . | . . . Used . | . . . Hacking Detections 1 | . 1 . Full Trace Events . | . . . Feedback Events . | . . . Feedback Blocked . | . . . Robot Schematics Acquired . | . . . Robots Built . | . . . Authchips . | . . . Time . | . . . Total Robot Build Rating . | . . . Part Schematics Acquired . | . . . Parts Built . | . . . Authchips . | . . . Time . | . . . Total Part Build Rating . | . . . Parts Repaired . | . . . Time . | . . . Parts Recycled . | . . . Recycled Matter . | . . . Retrieved Matter . | . . . Retrieved Components . | . . . Parts Scanalyzed . | . . . Part Schematics Acquired . | . . . Parts Damaged . | . . . Bothacking | -11 -10 -10 ------------ Run | Yrd Mat Min Used RIF Installer . | . . . Robots Hacked . | . . . Non-combat . | . . . Combat . | . . . Robot Hacks Applied . | . . . Relay Couplers Released . | . . . Fabnet Peak Effective % . | . . . Robots Rewired . | . . . Allies Hacked . | . . . Hacks Repelled . | . . . Allies | -11 -10 -10 -------- Run | Yrd Mat Min Total Allies . | . . . Largest Group . | . . . Highest-Rated Group . | . . . Highest-Rated Ally . | . . . Total Orders . | . . . Ally Attacks . | . . . Total Damage . | . . . Kills . | . . . Allies Corrupted . | . . . Allies Melted . | . . . Intel | -11 -10 -10 ------- Run | Yrd Mat Min Robot Analysis Total . | . . . Derelict Logs Recovered 2 | . . 2 Drone Launches . | . . . Drone Recoveries . | . . . Exploration | -11 -10 -10 ------------- Run | Yrd Mat Min Turns Passed 1195 | 59 357 779 Spaces Moved 735 | 39 131 565 Core 4 | 4 . . Treads . | . . . Legs 731 | 35 131 565 Wheels . | . . . Hover . | . . . Flight . | . . . Fastest Speed 50 | 50 120 120 Average Speed 119 | 112 120 120 Slowest Speed 120 | 120 120 120 Overloaded Moves . | . . . Propulsion Burnouts . | . . . Robots Hopped . | . . . Cave-ins Triggered . | . . . Exploration Rate (%) 34 | 3 29 71 Regions Visited 2 Branch Regions 1 Pre-discovered Areas . | . . . Known Exits Taken 1 | . 1 . Unknown Exits Taken 1 | 1 . . Scrap Searched 2 | . . 2 Spaces Dug . | . . . Terrain Destroyed 1 | . . 1 Melee . | . . . Projectile 1 | . . 1 AOE . | . . . Terrain Rammed . | . . . Walls Destroyed . | . . . Machines Disabled . | . . . Actions | -11 -10 -10 --------- Run | Yrd Mat Min Total 989 | 48 326 615 Wait 195 | . 176 19 Move 733 | 38 130 565 Hop . | . . . Pick Up 12 | 2 9 1 Fast Attach 7 | 6 1 . Attach 1 | . . 1 Detach . | . . . Swap 4 | 1 2 1 Drop 5 | . 5 . Fire 32 | 1 3 28 Melee . | . . . Ram . | . . . Kick . | . . . Crush . | . . . Escape Stasis . | . . . Rewire . | . . . Trap . | . . . Miscellaneous . | . . . Route ------- -11/Scrapyard -10/Materials -10/Mines (discovered 1 exit: *Mat) History --------- Turn | Location | Event 15 | -11/Scrapyard | Discovered new exit (range 16) 60 | -11/Scrapyard | Entered Materials 309 | -10/Materials | Build established: Mutant 403 | -10/Materials | Discovered new exit (range 12) 416 | -10/Materials | Identified exit to Mines 417 | -10/Materials | Entered Mines 418 | -10/Mines | Assembled infested the area 706 | -10/Mines | Discovered new exit (range 9) 715 | -10/Mines | Identified exit to Materials 1153 | -10/Mines | Core integrity fell below 50% 1191 | -10/Mines | Core integrity fell below 20% 1196 | -10/Mines | Destroyed by G-47 Trooper with Particle Gun Last Messages --------------- 01105_ T-07 Excavator is excavating. 01107_ U-05 Engineer lays Concrete. 01110_ T-07 Excavator is excavating. 01156_ G-47 Trooper destroyed. 01156_ G-34 Mercenary knocked back. 01158_ K-01 Serf collects debris. 01159_ G-34 Mercenary knocked back. 01161_ K-01 Serf collects debris. 01162_ G-34 Mercenary knocked back. 01164_ Critical hit (Burn: +37). 01166_ K-01 Serf collects debris. 01167_ K-01 Serf destroyed. 01178_ G-47 Trooper knocked back. 01184_ Critical hit (Burn: +37). 01185_ Imp. Aluminum Leg destroyed. 01187_ G-34 Mercenary knocked back. 01188_ Imp. Light Cannon destroyed. 01190_ G-34 Mercenary destroyed. 01192_ Imp. Aluminum Leg destroyed. 01196_ Destroyed Heat Sink. Map ----- +----------------------------------------------------+ | ????# """ #???????????????### ##???????? | | ????# """ #??????????????## ##????????? | | ????# #??????????????# # ###?????????? | | ????# #??????????????### # #?????????# | | ##??## #####????????????????# # ##????????## | | ##??# #????????????????????# #????????# | | ##?#!#????????????????????### ##????????# | | #?# #??????????????????????#% # ###????????## | | ### #??????????????????????# # #????????# | | ## ##############????????###"# ####????????# | | #????????# #???????????## | | # #????????# #####????????????# | | ## ###### ######## #????????# ####?????????????# | | ?####????# #??????# #???????## ## ##????????????## | | ##???????# #??????# #??????### ################### | | ##??????# #??????# #??????# | | ##?????# #?????## #??????# | | ##????# ####### ##?????# #################### | | #????# ## ##????# ######?????????????? | | ###### ## ### ##???# #??????????????????? | | ## #?# ##??# #??????????????????? | | ####### ## #?# #??# #??????????????????? | | ##????# ## #?## ##?# #??????????????????? | | ##???# ## #??###### ### #??????????????????? | | ##??# ## #?#####?## #??????????????????? | | ##?# ## ### ##?##@!% ##?????????????????? | | ### #??## %g ##????????????????? | | ##### ## #???#%g% #????????????????? | | % #??# ## ##??# % % #???????????????? | | ## #??# ## #??# % #???????????????? | | !### ###### ## #??# % ##???????????????? | | ! #?# ##! ## ##??# t %##????????????????? | | # #?# !%###### ##???# % #?????????????????? | | ####?####=#????######????# ##?????????????????? | | ??????## ##?????????????# ##??????????????????? | | ????### #????????????? #???????????????????? | | ???## ##????????????? ???????????????????? | | ??## ##?????????????? ???????????????????? | | ?## ##??????????????? ???????????????????? | | ?# ##???????????????? ??????????????????? | | ## ##????????????????? ??????????????????? | | # ##?????????????????? % ??????????????????? | | # #??????????????????? ????????????????????? | | ## #???????????????????????????????????????????? | | ## #???????????????????????????????????????????? | | # ##???????????????????????????????????????????? | | ##????????????????????????????????????????????? | | #?????????????????????????????????????????????? | | #?????????????????????????????????????????????? | | #?????????????????????????????????????????????? | +----------------------------------------------------+ Best States ------------- Heat Dissipation 25 Energy Generation 10 Energy Capacity 125 Matter Stores 300 Matter Capacity 300 Sight Range 16 Terrain Scan Density 10 Evasion (%) 55 Item Schematics ----------------- None Robot Schematics ------------------ None Fabricated ------------ Nothing Alien Tech Used ----------------- None Achievements -------------- Hunted Challenges ------------ None Game ------ Seed MetafieldDeepClaymores Manual? 0 Play Time 00:09:35 Cumulative 14.5 hours Start 2024.04.08 @ 12:55:32 End 2024.04.08 @ 13:03:19 Sessions 1 Manual Loads 0 Difficulty Rogue Special Mode None Game No. 28 Rogue 28 Adventurer 0 Explorer 0 Win Type - Total 0 Types 0/0/0/0/0/0/0/0/0 Lore% 19 Gallery% 27 Achievement% 21 Wizard Run 0 Options --------- Layout 1 ASCII 0 Keyboard 0 Movement Numpad Keybinds 0 Fullscreen 2 Font 24/Terminus Map View 50x35 Zoom Use 0% Tactical HUD 1 Map Filters NONE Filters NONE Steam 1 RUN: 86932b32-94c4-4d36-8083-4ff2ea85128d